[Event "GER-chT Youth Countries 2018"]
[Site "Wurzburg"]
[Date "2018.10.03"]
[Round "1"]
[White "Schulz, Hannah"]
[Black "Fischer, Darja"]
[Result "1-0"]
[ECO "B13"]
[WhiteElo "1527"]
[BlackElo "1456"]
[Annotator "NA RC"]
[PlyCount "165"]
[EventDate "2018.10.03"]
[EventType "team-tourn"]
[EventCountry "GER"]
[SourceTitle "playchess.com"]
[Source "ChessBase"]
[SourceQuality "1"]
[TimeControl "40/5400+30:1800+30"]

1. e4 {[%emt 0:00:00]} c6 {[%emt 0:00:00]} 2. d4 {[%emt 0:00:00]} d5 {[%emt 0:00:00]} 3. exd5 {[%emt 0:00:26]} cxd5 {[%emt 0:00:00]} 4. Nf3 {[%emt 0:00:28]} Nc6 {[%emt 0:00:26]} 5. Be2 {[%emt 0:00:43]} Bf5 {[%emt 0:00:58]} 6. c3 {[%emt 0:00:47]} e6 {[%emt 0:00:18]} 7. Bf4 {[%emt 0:00:46]} Nf6 {[%emt 0:01:10]} 8. Nbd2 {[%emt 0:01:38]} g6 {[%emt 0:01:45]} 9. O-O {[%emt 0:03:07]} Bg7 {[%emt 0:00:29]} 10. Re1 {[%emt 0:01:29]} O-O {[%emt 0:00:35]} 11. Nf1 {[%emt 0:01:09]} Ne4 {[%emt 0:04:39]} 12. Ng3 {[%emt 0:03:43]} Re8 {[%emt 0:05:08]} 13. Nxe4 {[%emt 0:01:25]} Bxe4 {[%emt 0:01:17]} 14. Qd2 {[%emt 0:01:18]} Rc8 {[%emt 0:03:53]} 15. Bh6 {[%emt 0:01:41]} Qd7 {[%emt 0:06:56]} 16. Bxg7 {[%emt 0:02:12]} Kxg7 {[%emt 0:00:17]} 17. Bb5 {[%emt 0:00:56]} f6 {[%emt 0:03:46]} 18. Qe3 {[%emt 0:03:07]} a6 {[%emt 0:04:52]} 19. Ba4 {[%emt 0:01:16]} b5 {[%emt 0:00:34]} 20. Bd1 {[%emt 0:01:03]} e5 {[%emt 0:09:38]} 21. dxe5 {[%emt 0:08:24]} fxe5 {[%emt 0:00:29]} 22. Be2 {[%emt 0:02:45]} Bf5 {[%emt 0:04:17]} 23. Rad1 {[%emt 0:01:58]} Rcd8 {[%emt 0:05:01]} 24. Nh4 {[%emt 0:04:33]} Qf7 {[%emt 0:04:49]} 25. Nxf5+ {[%emt 0:02:14]} Qxf5 {[%emt 0:00:23]} 26. Qb6 {[%emt 0:04:24]} Nb8 {[%emt 0:01:40]} 27. Bf3 {[%emt 0:07:59]} Qe6 {[%emt 0:03:16]} 28. Qxe6 {[%emt 0:01:13]} Rxe6 {[%emt 0:00:20]} 29. Rxd5 {[%emt 0:00:27]} Rxd5 {[%emt 0:00:28]} 30. Bxd5 {[%emt 0:00:45]} Rd6 {[%emt 0:00:49]} 31. Bb3 {[%emt 0:03:01]} Kf6 {[%emt 0:00:20]} 32. Rd1 {[%emt 0:00:40]} Rb6 {[%emt 0:05:08]} 33. h3 {[%emt 0:03:32]} h6 {[%emt 0:01:13]} 34. Rd8 {[%emt 0:02:55]} g5 {[%emt 0:00:59]} 35. Rf8+ {[%emt 0:01:25]} Kg6 {[%emt 0:02:29]} 36. Re8 {[%emt 0:00:49]} Kf6 {[%emt 0:00:14]} 37. Kh2 {[%emt 0:01:10]} Nd7 {[%emt 0:03:36]} 38. Rh8 {[%emt 0:02:26]} Kg7 {[%emt 0:00:28]} 39. Re8 {[%emt 0:03:16]} Kf6 {[%emt 0:00:14]} 40. Bc2 {[%emt 0:01:13]} Nb8 {[%emt 0:03:59]} 41. Rh8 {[%emt 0:30:45]} Kg7 {[%emt 0:30:27]} 42. Rh7+ {[%emt 0:00:21]} Kf8 {[%emt 0:00:03]} 43. Kg3 {[%emt 0:01:21]} Kg8 {[%emt 0:04:29]} 44. Re7 {[%emt 0:01:10]} Kf8 {[%emt 0:03:09]} 45. Rxe5 {[%emt 0:00:28]} Nd7 {[%emt 0:01:50]} 46. Re3 {[%emt 0:01:52]} Rf6 {[%emt 0:00:16]} 47. Rf3 {[%emt 0:00:12]} Ke7 {[%emt 0:00:50]} 48. Rxf6 {[%emt 0:00:20]} Kxf6 {[%emt 0:00:12]} 49. f3 {[%emt 0:00:54]} Ne5 {[%emt 0:01:03]} 50. Be4 {[%emt 0:00:53]} a5 {[%emt 0:00:38]} 51. Kf2 {[%emt 0:01:34]} b4 {[%emt 0:01:43]} 52. cxb4 {[%emt 0:02:20]} axb4 {[%emt 0:00:10]} 53. b3 {[%emt 0:01:13]} Nd7 {[%emt 0:00:22]} 54. Ke3 {[%emt 0:00:31]} Ke5 {[%emt 0:00:13]} 55. Kd3 {[%emt 0:00:49]} Nb6 {[%emt 0:00:51]} 56. g3 {[%emt 0:01:02]} h5 {[%emt 0:01:43]} 57. Bg6 {[%emt 0:01:56]} h4 {[%emt 0:02:24]} 58. gxh4 {[%emt 0:00:53]} gxh4 {[%emt 0:00:09]} 59. Bh5 {[%emt 0:00:42]} Kd5 {[%emt 0:00:37]} 60. f4 {[%emt 0:00:50]} Nd7 {[%emt 0:01:10]} 61. Bf7+ {[%emt 0:02:19]} Kc5 {[%emt 0:02:37]} 62. Be6 {[%emt 0:02:43]} Nf6 {[%emt 0:01:08]} 63. f5 {[%emt 0:01:12]} Ne8 {[%emt 0:01:16]} 64. Ke4 {[%emt 0:00:59]} Nf6+ {[%emt 0:01:32]} 65. Kf4 {[%emt 0:00:24]} Kd6 {[%emt 0:01:12]} 66. Kg5 {[%emt 0:00:41]} Ke7 {[%emt 0:00:13]} 67. Kxh4 {[%emt 0:00:32]} Kf8 {[%emt 0:00:06]} 68. Kg5 {[%emt 0:00:12]} Kg7 {[%emt 0:00:15]} 69. h4 {[%emt 0:00:26]} Ne4+ {[%emt 0:00:23]} 70. Kf4 {[%emt 0:00:23]} Nf6 {[%emt 0:00:14]} 71. Ke5 {[%emt 0:00:44]} Ne8 {[%emt 0:01:00]} 72. h5 {[%emt 0:00:53]} Nc7 {[%emt 0:00:46]} 73. f6+ {[%emt 0:00:37]} Kf8 {[%emt 0:00:52]} 74. h6 {[%emt 0:01:14]} Nxe6 {[%emt 0:02:50]} 75. Kxe6 {[%emt 0:00:20]} Kg8 {[%emt 0:00:14]} 76. h7+ {[%emt 0:00:23]} Kxh7 {[%emt 0:00:07]} 77. Ke7 {[%emt 0:00:04]} Kg6 {[%emt 0:00:14]} 78. f7 {[%emt 0:00:06]} Kh7 {[%emt 0:00:03]} 79. f8=Q {[%emt 0:00:26]} Kg6 {[%emt 0:00:02]} 80. Qf6+ {[%emt 0:00:08]} Kh7 {[%emt 0:00:05]} 81. Qg5 {[%emt 0:00:20]} Kh8 {[%emt 0:00:02]} 82. Kf7 {[%emt 0:00:11]} Kh7 {[%emt 0:00:17]} 83. Qg7# 1-0

[Event "GER-chT Youth Countries 2018"]
[Site "Wurzburg"]
[Date "2018.10.03"]
[Round "1"]
[White "Bress, Amy Charlize"]
[Black "Keymer, Cecilia"]
[Result "1/2-1/2"]
[ECO "C99"]
[WhiteElo "1464"]
[BlackElo "1479"]
[Annotator "NA"]
[PlyCount "86"]
[EventDate "2018.10.03"]
[EventType "team-tourn"]
[EventCountry "GER"]
[SourceTitle "playchess.com"]
[Source "ChessBase"]
[SourceQuality "1"]
[TimeControl "40/5400+30:1800+30"]

1. e4 {[%emt 0:00:00]} e5 {[%emt 0:00:00]} 2. Nf3 {[%emt 0:00:30]} Nc6 {[%emt 0:00:30]} 3. Bb5 {[%emt 0:00:30]} a6 {[%emt 0:00:30]} 4. Ba4 {[%emt 0:00:30]} Nf6 {[%emt 0:00:30]} 5. O-O {[%emt 0:00:30]} Be7 {[%emt 0:00:30]} 6. Re1 {[%emt 0:00:22]} b5 {[%emt 0:00:18]} 7. Bb3 {[%emt 0:00:30]} O-O {[%emt 0:00:28]} 8. c3 {[%emt 0:01:43]} d6 {[%emt 0:01:02]} 9. h3 {[%emt 0:00:36]} Na5 {[%emt 0:01:03]} 10. Bc2 {[%emt 0:02:40]} c5 {[%emt 0:01:13]} 11. d4 {[%emt 0:14:43]} Qc7 {[%emt 0:01:38]} 12. Nbd2 {[%emt 0:10:26]} cxd4 {[%emt 0:03:46]} 13. cxd4 {[%emt 0:01:22]} Bb7 {[%emt 0:02:17]} 14. Nf1 {[%emt 0:07:42]} Rac8 {[%emt 0:02:47]} 15. Bd3 {[%emt 0:04:37]} Nc6 {[%emt 0:04:27]} 16. Bb1 {[%emt 0:11:18]} Rfe8 {[%emt 0:04:26]} 17. Ng3 {[%emt 0:01:43]} Bf8 {[%emt 0:02:31]} 18. Qd2 {[%emt 0:07:38]} Qb6 {[%emt 0:04:43]} 19. d5 {[%emt 0:04:52]} Ne7 {[%emt 0:07:57]} 20. Qd1 {[%emt 0:01:52]} Ng6 {[%emt 0:02:19]} 21. Be3 {[%emt 0:00:22]} Qd8 {[%emt 0:01:56]} 22. Qd2 {[%emt 0:00:55]} Nd7 {[%emt 0:02:39]} 23. b4 {[%emt 0:04:57]} Nb6 {[%emt 0:02:27]} 24. Bxb6 {[%emt 0:01:31]} Qxb6 {[%emt 0:00:19]} 25. Qe3 {[%emt 0:00:55]} Qxe3 {[%emt 0:02:53]} 26. Rxe3 {[%emt 0:00:06]} Rc1+ {[%emt 0:02:50]} 27. Re1 {[%emt 0:00:34]} Rec8 {[%emt 0:01:53]} 28. Ne2 {[%emt 0:02:35]} Rxe1+ {[%emt 0:01:57]} 29. Nxe1 {[%emt 0:00:06]} Rc4 {[%emt 0:01:35]} 30. a3 {[%emt 0:00:11]} Be7 {[%emt 0:03:08]} 31. Bd3 {[%emt 0:01:18]} Rc8 {[%emt 0:01:32]} 32. Ra2 {[%emt 0:05:40]} Bd8 {[%emt 0:04:13]} 33. Rc2 {[%emt 0:01:51]} Rxc2 {[%emt 0:02:47]} 34. Nxc2 {[%emt 0:00:30]} Bb6 {[%emt 0:01:16]} 35. Kf1 {[%emt 0:03:05]} Kf8 {[%emt 0:01:52]} 36. Ke1 {[%emt 0:01:58]} Ke7 {[%emt 0:02:06]} 37. Kf1 {[%emt 0:01:10]} Kf8 {[%emt 0:03:47]} 38. Ke1 {[%emt 0:00:27]} Nh4 {[%emt 0:01:33]} 39. Kf1 {[%emt 0:00:24]} Ng6 {[%emt 0:00:30]} 40. Ke1 {[%emt 0:01:07]} Ke7 {[%emt 0:00:33]} 41. Kf1 {[%emt 0:30:19]} Kf8 {[%emt 0:30:34]} 42. Ke1 {[%emt 0:01:56]} Ke7 {[%emt 0:01:08]} 43. Kf1 {[%emt 0:01:58]} Kf8 1/2-1/2

[Event "GER-chT Youth Countries 2018"]
[Site "Wurzburg"]
[Date "2018.10.03"]
[Round "1"]
[White "Genova, Magdalina"]
[Black "Muedder, Melanie"]
[Result "0-1"]
[ECO "A25"]
[WhiteElo "1425"]
[BlackElo "1826"]
[Annotator "NA"]
[PlyCount "63"]
[EventDate "2018.10.03"]
[EventType "team-tourn"]
[EventCountry "GER"]
[SourceTitle "playchess.com"]
[Source "ChessBase"]
[SourceQuality "1"]
[TimeControl "40/5400+30:1800+30"]

1. c4 {[%emt 0:00:00]} e5 {[%emt 0:00:00]} 2. Nc3 {[%emt 0:00:00]} Nc6 {[%emt 0:00:08]} 3. g3 {[%emt 0:02:12]} Bc5 {[%emt 0:01:07]} 4. e3 {[%emt 0:02:22]} a6 {[%emt 0:03:14]} 5. Bg2 {[%emt 0:03:09]} d6 {[%emt 0:01:48]} 6. Nge2 {[%emt 0:01:32]} Ba7 {[%emt 0:02:40]} 7. O-O {[%emt 0:04:21]} h5 {[%emt 0:04:24]} 8. d3 {[%emt 0:10:05]} h4 {[%emt 0:07:06]} 9. b3 {[%emt 0:10:48]} hxg3 {[%emt 0:10:50]} 10. fxg3 {[%emt 0:06:30]} Nf6 {[%emt 0:07:35]} 11. Nd5 {[%emt 0:32:15]} Bh3 {[%emt 0:16:16]} 12. Nec3 {[%emt 0:10:04]} Bxg2 {[%emt 0:07:08]} 13. Kxg2 {[%emt 0:00:13]} Qd7 {[%emt 0:05:25]} 14. Nxf6+ $11 {[%emt 0:03:24]} gxf6 {[%emt 0:00:16]} 15. Qe2 {[%emt 0:00:45]} Qh3+ {[%emt 0:04:51]} 16. Kg1 {[%emt 0:00:37]} f5 {[%emt 0:01:29]} 17. Qg2 {[%emt 0:02:22]} Qh5 {[%emt 0:02:19]} 18. Nd5 {[%emt 0:01:29]} O-O-O {[%emt 0:01:19]} 19. Rf3 {[%emt 0:03:53]} Qh7 {[%emt 0:05:21]} 20. Kf1 {[%emt 0:01:32]} e4 {[%emt 0:02:29]} 21. dxe4 {[%emt 0:00:47]} fxe4 {[%emt 0:00:16]} 22. Rf4 {[%emt 0:00:49]} f5 {[%emt 0:03:18]} 23. Bb2 {[%emt 0:00:47]} Ne5 {[%emt 0:02:36]} 24. Ke2 {[%emt 0:01:21]} Qxh2 {[%emt 0:01:02]} 25. Qxh2 {[%emt 0:00:03]} Rxh2+ {[%emt 0:00:12]} 26. Rf2 {[%emt 0:00:35]} Rxf2+ {[%emt 0:00:26]} 27. Kxf2 {[%emt 0:00:02]} Nd3+ {[%emt 0:00:09]} 28. Ke2 {[%emt 0:00:35]} Nxb2 {[%emt 0:00:29]} 29. Ne7+ {[%emt 0:01:10]} Kd7 {[%emt 0:01:06]} 30. Nxf5 {[%emt 0:00:08]} Rh8 {[%emt 0:00:42]} 31. Nh4 {[%emt 0:00:36]} Rf8 {[%emt 0:00:57]} 32. Rg1 {[%emt 0:00:00]} 0-1

[Event "GER-chT Youth Countries 2018"]
[Site "Wurzburg"]
[Date "2018.10.03"]
[Round "1"]
[White "Hubert, Charlotte"]
[Black "Moeller, Lisa-Marie"]
[Result "0-1"]
[ECO "B40"]
[WhiteElo "1376"]
[BlackElo "1868"]
[Annotator "NA"]
[PlyCount "63"]
[EventDate "2018.10.03"]
[EventType "team-tourn"]
[EventCountry "GER"]
[SourceTitle "playchess.com"]
[Source "ChessBase"]
[SourceQuality "1"]
[TimeControl "40/5400+30:1800+30"]

1. e4 c5 2. Nf3 e6 3. c3 d5 4. exd5 Qxd5 5. d4 Nf6 6. Be2 Nc6 7. h3 Be7 8. Be3 cxd4 9. Bxd4 O-O 10. O-O Nxd4 11. Qxd4 b6 12. Qxd5 Nxd5 13. Nd4 Bb7 14. Bf3 Rab8 15. Nd2 Bf6 16. N2b3 Nf4 17. Bxb7 Rxb7 18. Rad1 Rd7 19. Nf3 Rfd8 20. Rxd7 Rxd7 21. Nbd4 Nd3 22. Rb1 a6 23. b3 b5 24. Rd1 Nc5 25. Rd2 Ne4 26. Rc2 h6 27. Ne2 Rd1+ 28. Kh2 Nxf2 29. Neg1 Ne4 30. c4 Be7 31. Ne2 Bd6+ 32. Nf4 0-1

[Event "GER-chT Youth Countries 2018"]
[Site "Wurzburg"]
[Date "2018.10.03"]
[Round "1"]
[White "Zoellner, Bente"]
[Black "Braeutigam, Katerina"]
[Result "1/2-1/2"]
[ECO "E21"]
[WhiteElo "1354"]
[BlackElo "1696"]
[Annotator "NA"]
[PlyCount "153"]
[EventDate "2018.10.03"]
[EventType "team-tourn"]
[EventCountry "GER"]
[SourceTitle "playchess.com"]
[Source "ChessBase"]
[SourceQuality "1"]
[TimeControl "40/5400+30:1800+30"]

1. d4 Nf6 2. c4 e6 3. Nc3 Bb4 4. Nf3 b6 5. Bg5 Bb7 6. e3 h6 7. Bh4 {[%emt 0:02:54]} O-O {[%emt 0:04:53]} 8. Be2 {[%emt 0:01:41]} d5 {[%emt 0:01:50]} 9. O-O {[%emt 0:02:12]} Be7 {[%emt 0:00:44]} 10. Bxf6 {[%emt 0:03:45]} Bxf6 {[%emt 0:00:21]} 11. cxd5 {[%emt 0:00:11]} Bxd5 {[%emt 0:00:46]} 12. Nxd5 {[%emt 0:00:47]} Qxd5 {[%emt 0:00:16]} 13. Qc2 {[%emt 0:02:04]} Rc8 {[%emt 0:00:36]} 14. Bd3 {[%emt 0:00:55]} c6 {[%emt 0:05:53]} 15. Be4 {[%emt 0:01:13]} Qd6 {[%emt 0:00:36]} 16. Rac1 {[%emt 0:02:19]} g6 {[%emt 0:02:17]} 17. Bd3 {[%emt 0:09:44]} Bg7 {[%emt 0:04:49]} 18. Qa4 {[%emt 0:01:47]} f5 {[%emt 0:04:34]} 19. Rc2 {[%emt 0:01:40]} Nd7 {[%emt 0:00:56]} 20. Rfc1 {[%emt 0:02:05]} c5 {[%emt 0:00:41]} 21. Bb5 {[%emt 0:01:13]} Nf6 {[%emt 0:03:05]} 22. dxc5 {[%emt 0:02:00]} bxc5 {[%emt 0:01:20]} 23. b4 {[%emt 0:03:03]} Ne4 {[%emt 0:04:51]} 24. bxc5 {[%emt 0:02:26]} Rxc5 {[%emt 0:01:59]} 25. Rxc5 {[%emt 0:04:06]} Nxc5 {[%emt 0:00:52]} 26. Qa3 {[%emt 0:00:46]} Bf8 {[%emt 0:04:41]} 27. h3 {[%emt 0:01:05]} Qb6 {[%emt 0:01:38]} 28. Be2 {[%emt 0:02:16]} Rb8 {[%emt 0:04:05]} 29. g3 {[%emt 0:02:39]} Ne4 {[%emt 0:03:32]} 30. Qd3 {[%emt 0:02:39]} Rd8 {[%emt 0:13:55]} 31. Qc4 {[%emt 0:02:12]} Nc5 {[%emt 0:17:19]} 32. Ne5 {[%emt 0:02:04]} Kh7 {[%emt 0:02:35]} 33. h4 {[%emt 0:04:08]} Rd5 {[%emt 0:06:47]} 34. f4 {[%emt 0:01:27]} Bg7 {[%emt 0:01:28]} 35. Bf3 {[%emt 0:02:26]} Ne4 {[%emt 0:00:51]} 36. Bxe4 {[%emt 0:02:23]} Qxe3+ {[%emt 0:01:35]} 37. Kg2 {[%emt 0:00:22]} Rd2+ {[%emt 0:03:46]} 38. Kh3 {[%emt 0:01:31]} Qxe4 {[%emt 0:00:51]} 39. Qxe4 {[%emt 0:00:33]} fxe4 {[%emt 0:00:16]} 40. Re1 {[%emt 0:01:01]} Bxe5 {[%emt 0:02:29]} 41. fxe5 {[%emt 0:30:19]} Rxa2 {[%emt 0:30:43]} 42. Rxe4 {[%emt 0:00:28]} g5 {[%emt 0:01:55]} 43. hxg5 {[%emt 0:00:43]} hxg5 {[%emt 0:00:08]} 44. Kg4 {[%emt 0:00:14]} Kg6 {[%emt 0:00:19]} 45. Rc4 {[%emt 0:02:16]} a5 {[%emt 0:01:12]} 46. Kf3 {[%emt 0:01:39]} Ra3+ {[%emt 0:00:41]} 47. Kf2 {[%emt 0:00:34]} Kf5 {[%emt 0:00:22]} 48. Rc5 {[%emt 0:01:16]} Ke4 {[%emt 0:00:51]} 49. Ke2 {[%emt 0:00:31]} Rxg3 {[%emt 0:00:33]} 50. Rxa5 {[%emt 0:00:11]} Re3+ {[%emt 0:00:29]} 51. Kf2 {[%emt 0:00:20]} Kf4 {[%emt 0:00:25]} 52. Ra4+ {[%emt 0:01:18]} Re4 {[%emt 0:00:13]} 53. Ra3 {[%emt 0:00:12]} Kxe5 {[%emt 0:00:15]} 54. Ra5+ {[%emt 0:01:08]} Kf4 {[%emt 0:00:14]} 55. Ra3 {[%emt 0:00:52]} g4 {[%emt 0:00:08]} 56. Rd3 {[%emt 0:00:36]} e5 {[%emt 0:00:42]} 57. Rc3 {[%emt 0:00:46]} Rb4 {[%emt 0:00:32]} 58. Rd3 {[%emt 0:01:17]} Rb2+ {[%emt 0:00:33]} 59. Kf1 {[%emt 0:00:17]} g3 {[%emt 0:00:28]} 60. Rd8 {[%emt 0:00:19]} Rf2+ {[%emt 0:00:00]} 61. Kg1 {[%emt 0:00:00]} Ke3 {[%emt 0:00:00]} 62. Rg8 {[%emt 0:00:00]} Rf3 {[%emt 0:00:00]} 63. Kg2 {[%emt 0:00:00]} e4 {[%emt 0:00:00]} 64. Ra8 {[%emt 0:00:00]} Ke2 {[%emt 0:00:00]} 65. Ra2+ {[%emt 0:00:00]} Ke3 {[%emt 0:00:00]} 66. Ra8 {[%emt 0:00:00]} Kd4 {[%emt 0:00:00]} 67. Rd8+ {[%emt 0:00:00]} Kc5 {[%emt 0:00:00]} 68. Rc8+ {[%emt 0:00:00]} Kd6 {[%emt 0:00:00]} 69. Rd8+ {[%emt 0:00:00]} Ke5 {[%emt 0:00:00]} 70. Re8+ {[%emt 0:00:00]} Kf4 {[%emt 0:00:00]} 71. Rf8+ {[%emt 0:00:00]} Ke3 {[%emt 0:00:00]} 72. Ra8 {[%emt 0:00:00]} Kd3 {[%emt 0:00:00]} 73. Ra3+ {[%emt 0:00:00]} Ke2 {[%emt 0:00:00]} 74. Ra2+ {[%emt 0:00:00]} Kd1 {[%emt 0:00:00]} 75. Ra1+ {[%emt 0:00:00]} Kc2 {[%emt 0:00:00]} 76. Ra2+ {[%emt 0:00:00]} Kb1 {[%emt 0:00:00]} 77. Re2 {[%emt 0:00:00]} 1/2-1/2

[Event "GER-chT Youth Countries 2018"]
[Site "Wurzburg"]
[Date "2018.10.03"]
[Round "1"]
[White "Langer, Paul Georg"]
[Black "Roncea, Andrea-Alexandra"]
[Result "1/2-1/2"]
[ECO "C54"]
[WhiteElo "1348"]
[BlackElo "1515"]
[Annotator "NA"]
[PlyCount "104"]
[EventDate "2018.10.03"]
[EventType "team-tourn"]
[EventCountry "GER"]
[SourceTitle "playchess.com"]
[Source "ChessBase"]
[SourceQuality "1"]
[TimeControl "40/5400+30:1800+30"]

1. e4 {[%emt 0:00:00]} e5 {[%emt 0:00:00]} 2. Nf3 {[%emt 0:00:00]} Nc6 {[%emt 0:00:00]} 3. Bc4 {[%emt 0:00:00]} Bc5 {[%emt 0:00:15]} 4. c3 {[%emt 0:00:04]} Nf6 {[%emt 0:00:05]} 5. d4 {[%emt 0:00:10]} exd4 {[%emt 0:00:10]} 6. cxd4 {[%emt 0:00:08]} Bb4+ {[%emt 0:00:16]} 7. Bd2 {[%emt 0:00:21]} Bxd2+ {[%emt 0:00:10]} 8. Nbxd2 {[%emt 0:00:09]} d5 {[%emt 0:00:25]} 9. exd5 {[%emt 0:00:08]} Nxd5 {[%emt 0:00:11]} 10. Qb3 {[%emt 0:00:12]} Nce7 {[%emt 0:00:15]} 11. O-O {[%emt 0:00:27]} O-O {[%emt 0:00:08]} 12. Rfe1 {[%emt 0:00:06]} c6 {[%emt 0:00:53]} 13. Rac1 {[%emt 0:00:23]} Nb6 {[%emt 0:01:34]} 14. Qa3 {[%emt 0:11:12]} Nxc4 {[%emt 0:05:20]} 15. Nxc4 {[%emt 0:01:24]} Nd5 {[%emt 0:02:57]} 16. Nd6 {[%emt 0:04:52]} Qb6 {[%emt 0:12:38]} 17. h3 {[%emt 0:29:20]} Bd7 {[%emt 0:13:41]} 18. Ne5 {[%emt 0:06:14]} Be6 {[%emt 0:02:21]} 19. Nec4 {[%emt 0:08:33]} Qxd4 {[%emt 0:06:51]} 20. Re4 {[%emt 0:02:41]} Qf6 {[%emt 0:01:47]} 21. Nxb7 {[%emt 0:14:46]} Qg5 {[%emt 0:04:17]} 22. Rce1 {[%emt 0:03:04]} Nf4 {[%emt 0:01:24]} 23. Qg3 {[%emt 0:02:22]} Nxh3+ {[%emt 0:01:57]} 24. gxh3 {[%emt 0:01:00]} Qxg3+ {[%emt 0:03:46]} 25. fxg3 {[%emt 0:00:16]} Bxh3 {[%emt 0:01:25]} 26. Ncd6 {[%emt 0:02:40]} Be6 {[%emt 0:01:04]} 27. a3 {[%emt 0:01:09]} Rab8 {[%emt 0:02:23]} 28. Ra4 {[%emt 0:01:03]} Ra8 {[%emt 0:06:49]} 29. Ra6 {[%emt 0:01:15]} Bd5 {[%emt 0:01:18]} 30. b4 {[%emt 0:01:26]} Rfb8 {[%emt 0:05:33]} 31. Re7 {[%emt 0:02:07]} Kf8 {[%emt 0:02:13]} 32. Rc7 {[%emt 0:01:36]} g6 {[%emt 0:03:29]} 33. Nc5 {[%emt 0:01:08]} Rd8 {[%emt 0:02:10]} 34. Ndb7 {[%emt 0:04:48]} Re8 {[%emt 0:02:15]} 35. Nd7+ {[%emt 0:01:01]} Kg7 {[%emt 0:00:38]} 36. Nbc5 {[%emt 0:00:45]} Re3 {[%emt 0:01:44]} 37. Raxa7 {[%emt 0:01:05]} Rxg3+ {[%emt 0:00:13]} 38. Kf2 {[%emt 0:00:08]} Rf3+ {[%emt 0:01:09]} 39. Ke2 {[%emt 0:00:54]} Re8+ {[%emt 0:00:39]} 40. Kd2 {[%emt 0:00:07]} Rf2+ {[%emt 0:00:36]} 41. Kc3 Rf3+ {[%emt 0:32:13]} 42. Nd3 {[%emt 0:31:07]} h5 {[%emt 0:05:56]} 43. Kd2 {[%emt 0:00:00]} h4 {[%emt 0:00:00]} 44. N7e5 {[%emt 0:00:00]} Rf6 {[%emt 0:00:00]} 45. Re7 {[%emt 0:00:00]} Rh8 {[%emt 0:00:00]} 46. Ng4 {[%emt 0:00:00]} Rf5 {[%emt 0:00:00]} 47. a4 {[%emt 0:00:00]} h3 {[%emt 0:00:00]} 48. Nh2 {[%emt 0:00:00]} Rg5 {[%emt 0:00:00]} 49. Ne1 {[%emt 0:00:00]} Rh4 {[%emt 0:00:00]} 50. b5 {[%emt 0:00:00]} Rb4 {[%emt 0:00:00]} 51. Kc3 {[%emt 0:00:00]} Rb3+ {[%emt 0:00:00]} 52. Kc2 {[%emt 0:00:00]} Rbg3 {[%emt 0:00:00]} 1/2-1/2

[Event "GER-chT Youth Countries 2018"]
[Site "Wurzburg"]
[Date "2018.10.03"]
[Round "2"]
[White "Pfreundt, Jakob"]
[Black "Lagunow, Raphael"]
[Result "1-0"]
[ECO "D31"]
[WhiteElo "2388"]
[BlackElo "2403"]
[Annotator "NA"]
[PlyCount "45"]
[EventDate "2018.10.02"]
[EventType "team-tourn"]
[EventCountry "GER"]
[SourceTitle "playchess.com"]
[Source "ChessBase"]
[SourceQuality "1"]
[TimeControl "40/5400+30:1800+30"]

1. d4 {[%emt 0:00:12]} d5 {[%emt 0:00:00]} 2. c4 {[%emt 0:00:22]} e6 {[%emt 0:00:08]} 3. Nc3 {[%emt 0:03:43]} c6 {[%emt 0:00:07]} 4. cxd5 {[%emt 0:03:53]} exd5 {[%emt 0:00:34]} 5. Qc2 {[%emt 0:02:23]} Ne7 {[%emt 0:07:33]} 6. Bg5 {[%emt 0:10:51]} f6 {[%emt 0:09:43]} 7. Bd2 {[%emt 0:07:01]} Bf5 {[%emt 0:00:33]} 8. e4 {[%emt 0:01:11]} dxe4 {[%emt 0:04:17]} 9. Nxe4 {[%emt 0:00:19]} Qxd4 {[%emt 0:15:40]} 10. Bd3 {[%emt 0:00:16]} Na6 {[%emt 0:00:32]} 11. Ne2 {[%emt 0:08:02]} Qd7 {[%emt 0:01:49]} 12. O-O-O {[%emt 0:02:43]} Bg6 {[%emt 0:15:45]} 13. Nf4 {[%emt 0:10:04]} Nd5 {[%emt 0:01:20]} 14. Nxg6 {[%emt 0:20:17]} hxg6 {[%emt 0:00:39]} 15. Nc3 {[%emt 0:05:13]} f5 {[%emt 0:18:36]} 16. Rhe1+ {[%emt 0:00:39]} Kf7 {[%emt 0:00:06]} 17. Bc4 {[%emt 0:02:00]} Bb4 {[%emt 0:03:21]} 18. Nxd5 {[%emt 0:03:48]} cxd5 {[%emt 0:00:28]} 19. Bc3 {[%emt 0:00:30]} Qc8 {[%emt 0:05:28]} 20. Bxd5+ {[%emt 0:07:57]} Kf8 {[%emt 0:00:01]} 21. Be6 {[%emt 0:03:49]} Qc6 {[%emt 0:02:27]} 22. Rd7 {[%emt 0:01:33]} Re8 {[%emt 0:02:28]} 23. Bxg7# {[%emt 0:01:07]} 1-0

[Event "GER-chT Youth Countries 2018"]
[Site "Wurzburg"]
[Date "2018.10.03"]
[Round "2"]
[White "Kololli, Martin"]
[Black "Pallas, Sebastian"]
[Result "1-0"]
[ECO "B22"]
[WhiteElo "2331"]
[BlackElo "2278"]
[Annotator "NA"]
[PlyCount "49"]
[EventDate "2018.10.02"]
[EventType "team-tourn"]
[EventCountry "GER"]
[SourceTitle "playchess.com"]
[Source "ChessBase"]
[SourceQuality "1"]
[TimeControl "40/5400+30:1800+30"]

1. e4 {[%emt 0:00:00]} c5 {[%emt 0:00:00]} 2. c3 {[%emt 0:00:00]} Nf6 {[%emt 0:00:12]} 3. e5 {[%emt 0:00:00]} Nd5 {[%emt 0:00:10]} 4. d4 {[%emt 0:00:09]} cxd4 {[%emt 0:00:58]} 5. Nf3 {[%emt 0:00:09]} e6 {[%emt 0:00:28]} 6. cxd4 {[%emt 0:00:08]} d6 {[%emt 0:00:47]} 7. Bc4 {[%emt 0:00:59]} Nc6 {[%emt 0:00:58]} 8. O-O {[%emt 0:00:34]} Be7 {[%emt 0:00:43]} 9. Qe2 {[%emt 0:00:20]} O-O {[%emt 0:00:38]} 10. Nc3 {[%emt 0:00:56]} Nxc3 {[%emt 0:08:50]} 11. bxc3 {[%emt 0:00:07]} dxe5 {[%emt 0:00:21]} 12. dxe5 {[%emt 0:00:32]} Qa5 {[%emt 0:00:21]} 13. Bd3 {[%emt 0:03:18]} Rd8 {[%emt 0:01:23]} 14. Rb1 {[%emt 0:03:20]} Bd7 {[%emt 0:16:08]} 15. Rxb7 {[%emt 0:07:27]} g6 {[%emt 0:01:00]} 16. Bb5 {[%emt 0:09:36]} Rac8 {[%emt 0:09:35]} 17. Be3 {[%emt 0:12:53]} Qxc3 {[%emt 0:15:40]} 18. Rd1 {[%emt 0:05:16]} Be8 {[%emt 0:06:22]} 19. Bxc6 {[%emt 0:03:21]} Bxc6 {[%emt 0:00:31]} 20. Rxe7 {[%emt 0:01:17]} Bb5 {[%emt 0:05:06]} 21. Qe1 {[%emt 0:01:46]} Rxd1 {[%emt 0:02:24]} 22. Qxd1 {[%emt 0:00:12]} Ba4 {[%emt 0:00:20]} 23. Qe1 {[%emt 0:00:51]} Qxe1+ {[%emt 0:00:52]} 24. Nxe1 {[%emt 0:00:06]} Rd8 {[%emt 0:00:10]} 25. f3 1-0